{"text_format":"1","workbook":"xlsx","n_sheets":4,"sheets":["Definitionen","WTW_Holzbau","WTD_Holzbau","Bauteilschichten"],"not_rendered":{"charts":0,"images":104,"macros":1,"external_links":1,"defined_names":122,"comments":0,"pivot_tables":0},"unopened":[],"bounds":{"document_bytes":16777216,"sheet_cells":100000,"rows_first":2000,"rows_last":500,"rows_between":2000,"halvings":0,"cell_chars":16384,"cell_head_chars":4096},"cells_cut":0,"cells_raw":0,"read":"whole","date_system":"1900"}

{"sheet":"Definitionen","index":0,"n_rows":15,"n_cols":12,"rows_kept":15,"cut":false,"hidden":false,"merged":[]}
["Massivbau","Leichtbau","Massivholzbau","Trenndecke_Holzbau","Trenndecke_Massivbau","Estrichaufbauten","Wandtypen","Beplankungen","Stoßstellen","Trennwandtypen Holzbau","Trennwandtypen Massiv","Flankenbauteiltypen Holzbau"]
["Beton,KS-Stein,Mauerziegel","Montagewand","Massivholzwand","offene Holzbalkendecke","Stahlbetondecke","Zementestrich auf Holzfaser","Massivholzwand","Holzwerkstoffplatte + GKP","T-Stoss","Trockenbauwände","Holzrahmenbau"]
["Leichtbeton","Holzständerwand","Massivholzdecke","Holzbalkendecke mit Lattung + GK",null,"Zementestrich auf Mineralfaser","Holzständerwand","Gipsfaser","T-Stoss ELASTOMER oben","Holzrahmenbau Innenwände mit Installationse.","Beton, Kalksandstein, Mauerziegel","Trokenbautwände"]
["Porenbeton","Holzbalkendecke",null,"Holzbalkendecke mit FS + 1 x GK",null,"Trockenestrich","Metallständerwand","Holzwerkstoffplatte","T-Stoss ELASTOMER oben+unten","Holzrahmenbau Innenwände ohne Installationse.","Leichtbeton","Holzrahmenbau mit Installationsebene"]
[null,"Hohlkastendecke",null,"Holzbalkendecke mit Abh. + 2 x GK",null,null,"keine (versetze Wand)",null,"X-Stoss","Holzrahmenbau Wohungstrennwände","Porenbeton","Holzrahmenbau ohne Installationsebene"]
[null,null,null,"Massivholzdecke ohne Unterdecke ",null,null,null,null,"X-Stoss ELASTOMER oben","Holzrahmenbau Gebäudetrennwände",null,"Massivwand mit Installationsebene"]
[null,null,null,"Massivholzdecke mit Unterdecke",null,null,null,null,"X-Stoss ELASTOMER oben+unten","Massivholzbauwände"]
[null,null,null,"Rippen/-Kastenelementdecke",null,null,null,null,null,"Holzrahmenbau Außenwände mit Installationse."]
[null,null,null,"Holz-Beton-Verbunddecke",null,null,null,null,null,"Holzrahmenbau Außenwände ohne Inastallationse."]
[]
[]
[null,null,null,null,null,null,null,null,null,"Wohnungtrennwände Holzrahmenbau","keine"]
[null,null,null,null,null,null,null,null,null,"Wohnungtrennwände Massivholzbau","mit Trockenbau Vorsatzschale"]
[null,null,null,null,null,null,null,null,null,"Gebäudetrennwände Holzrahmenbau","mit Holzrahmenbau Vorsatzschale"]
[null,null,null,null,null,null,null,null,null,"Gebäudetrennwände Massivholzbau"]

{"sheet":"WTW_Holzbau","index":1,"n_rows":80,"n_cols":10,"rows_kept":80,"cut":false,"hidden":false,"merged":[[79,3,79,5],[79,6,79,7],[79,8,79,9],[80,3,80,5],[80,6,80,7],[80,8,80,9],[37,3,37,5],[60,6,60,9],[38,4,38,5],[38,6,38,7],[38,8,38,9],[42,6,42,9],[47,4,47,5],[47,6,47,7],[47,8,47,9],[51,6,51,9],[56,4,56,5],[56,6,56,7],[56,8,56,9],[46,3,46,5],[55,3,55,5],[29,4,29,5],[29,6,29,7],[29,8,29,9],[33,6,33,9],[28,3,28,5],[18,2,18,3],[20,2,20,9],[21,6,24,7],[21,8,21,9],[22,3,22,5],[23,3,23,5],[23,8,23,9],[24,3,24,5],[1,1,5,5],[1,6,5,10],[9,3,9,5],[9,6,9,8],[13,7,14,7]]}
[]
[null,"Luftschallprognose von Trennwänden"]
[]
[]
[]
[]
[null,null,"Trennwand:"]
[]
[]
[null,null,"Bauteilskizze","Konstruktionsdetails",null,null,"Rw (RW,0)"]
[]
[]
[]
[null,null,null,null,null,null,null,71]
[]
[]
[]
[]
[null,null,"Quelle: DIN 4109-33:2016-07, Tabelle 8, Zeile 1"]
[]
[null,null,"Zusätzliche Angaben zur Trenndecke für das Prognosemodell"]
[null,null,"Trennfläche der Wand SS =",20,null,null,null,null,""]
[null,null,"Ausgewählter Wandtyp: "]
[null,null,"Vorsatzschale:","mit Trockenbau Vorsatzschale"]
[null,null,{"$f":"IF(D23=\"Massivholzdecke ohne Unterdecke \",\"Rohdecke+Beschwerung: m' =\",\"\")","v":""}]
[]
[null,null,"Flankierende Bauteile:"]
[]
[null,null,"Wand 1                            Quelle:"]
[null,null,"Gemeinsame Kantenlänge lf =",5,null,null,"Übertragungswege",null,"Flankendämm-Maße:"]
[null,null,"Wandtyp:","Holzständerwand",null," ","RFf,w,I =  ",null,"RFf,w =",69.552725051033065]
[null,null,"mit Vorsatzschle","Gipsfaser",null," ","RFd,w,I =",null,null," "]
[null,null,"Vorsatzschalentyp",null,null," ","RDf,w,I = ",null,null," "]
[null,null,null,null,null,null,"Verbesserung durch Vorsatzschalen:"]
[null,null,null,null,null,null,"VS-Schale-Senderaum",null,"DRw =",0]
[null,null,null,null,null,null,"VS-Schale-Empfangsraum",null,"DRw =",0]
[]
[null,null,"Boden 2                            Quelle:"]
[null,null,"Gemeinsame Kantenlänge lf =",4,null,null,"Übertragungswege",null,"Flankendämm-Maße:"]
[null,null,"Bodentyp:","Betonbodenplatte",null," ","RFf,w,II =  ",null,"RFf,w =",70.521825181113627]
[null,null,"Estirch","Gipsfaser",null," ","RFd,w,II =",null,null," "]
[null,null,null,null,null," ","RDf,w,II = ",null,null," "]
[null,null,null,null,null,null,"Verbesserung durch Vorsatzschalen:"]
[null,null,null,null,null,null,"VS-Schale-Senderaum",null,"DRw =",0]
[null,null,null,null,null,null,"VS-Schale-Empfangsraum",null,"DRw =",0]
[]
[null,null,"Wand 3                            Quelle:"]
[null,null,"Gemeinsame Kantenlänge lf =",5,null,null,"Übertragungswege",null,"Flankendämm-Maße:"]
[null,null,"Wandtyp:","Holzständerwand",null," ","RFf,w,III =  ",null,"RFf,w =",69.552725051033065]
[null,null,"mit Vorsatzschle","Gipsfaser",null," ","RFd,w,III =",null,null," "]
[null,null,"Vorsatzschalentyp",null,null," ","RDf,w,III = ",null,null," "]
[null,null,null,null,null,null,"Verbesserung durch Vorsatzschalen:"]
[null,null,null,null,null,null,"VS-Schale-Senderaum",null,"DRw =",0]
[null,null,null,null,null,null,"VS-Schale-Empfangsraum",null,"DRw =",0]
[]
[null,null,"Decke 4                           Quelle:"]
[null,null,"Gemeinsame Kantenlänge lf =",4,null,null,"Übertragungswege",null,"Flankendämm-Maße:"]
[null,null,"Deckentyp","Holzständerwand",null," ","RFf,w,IV =  ",null,"RFf,w =",70.521825181113627]
[null,null,"mit Abgehängter Decke","Gipsfaser",null," ","RFd,w,IV =",null,null," "]
[null,null,"Abhängungstyp",null,null," ","RDf,w,IV = ",null,null," "]
[null,null,null,null,null,null,"Verbesserung durch Vorsatzschalen:"]
[null,null,null,null,null,null,"VS-Schale-Senderaum",null,"DRw =",0]
[null,null,null,null,null,null,"VS-Schale-Empfangsraum",null,"DRw =",0]
[]
[]
[]
[]
[]
[]
[]
[]
[]
[]
[]
[]
[]
[]
[null,null,"Berechnung nach DIN4109:"]
[]
[null,null,null,"Bewertetes Bau-Schalldämm-Maß",null,null,"     R'w   =",null,63.018537966791108]

{"sheet":"WTD_Holzbau","index":2,"n_rows":81,"n_cols":22,"rows_kept":81,"cut":false,"hidden":false,"merged":[[10,2,17,2],[10,6,12,7],[13,6,13,7],[13,8,13,9],[14,6,14,7],[1,1,5,5],[1,6,5,10],[9,3,9,5],[9,6,9,7],[9,8,9,9],[37,2,37,9],[18,2,18,3],[20,2,20,9],[22,3,22,5],[23,3,23,5],[24,3,24,5],[28,2,28,9],[29,4,29,5],[29,6,29,7],[29,8,29,9],[33,6,33,9],[21,6,21,9],[23,6,23,9],[60,6,60,9],[38,4,38,5],[38,6,38,7],[38,8,38,9],[42,6,42,9],[46,2,46,9],[47,4,47,5],[47,6,47,7],[47,8,47,9],[51,6,51,9],[55,2,55,9],[56,4,56,5],[56,6,56,7],[56,8,56,9],[79,3,79,5],[79,6,79,7],[79,8,79,9],[80,3,80,5],[80,6,80,7],[80,8,80,9]]}
[]
[null,"Luft- und Trittschallprognose von Holzdecken"]
[]
[]
[]
[]
[null,null,null,null,null,null,null,null,null,null,null,null,null,null,null,null,null,null,null,null,null,{"$f":"IF(D31=\"Massivholzwand\",\"T-Stoss\",\"Holzwerkstoffplatte + GKP\")","v":"Holzwerkstoffplatte + GKP"}]
[null,null,"Trenndecke:",null,null,null,null,null,null,null,null,null,null,null,null,null,null,null,null,null,null,{"$f":"IF(D31=\"Massivholzwand\",\"T-Stoss ELASTOMER oben\",\"Gipsfaser\")","v":"Gipsfaser"}]
[]
[null,null,"Skizze","Konstruktionsdetails",null,null,"Ln,w (CI,50-2500)",null,"Rw",null,null,null,null,null,null,null,null,null,null,null,null,{"$f":"IF(D31=\"Massivholzwand\",\"T-Stoss ELASTOMER oben+unten\",\"Holzwerkstoffplatte\")","v":"Holzwerkstoffplatte"}]
[null,null,null,null,null,null,null,null,null,null,null,null,null,null,null,null,null,null,null,6,null,{"$f":"IF(D31=\"Massivholzwand\",\"X-Stoss\",\"\")","v":""}]
[null,null,null,null,null,null,null,null,null,null,null,null,null,null,null,null,null,null,null,null,null,{"$f":"IF(D31=\"Massivholzwand\",\"X-Stoss ELASTOMER oben\",\"\")","v":""}]
[null,null,null,null,null,null,null,null,null,null,null,null,null,null,null,null,null,null,null,null,null,{"$f":"IF(D31=\"Massivholzwand\",\"X-Stoss ELASTOMER oben+unten\",\"\")","v":""}]
[null,null,null,null,null,null,46,null,76]
[null,null,null,null,null,null,"(7 dB)",null,null,null,null,null,null,null,null,null,null,null,null,null,null,{"$f":"IF(D40=\"Massivholzwand\",\"T-Stoss\",\"Holzwerkstoffplatte + GKP\")","v":"Holzwerkstoffplatte + GKP"}]
[null,null,null,null,null,null,null,null,null,null,null,null,null,null,null,null,null,null,null,null,null,{"$f":"IF(D40=\"Massivholzwand\",\"T-Stoss ELASTOMER oben\",\"Gipsfaser\")","v":"Gipsfaser"}]
[null,null,null,null,null,null,null,null,null,null,null,null,null,null,null,null,null,null,null,null,null,{"$f":"IF(D40=\"Massivholzwand\",\"T-Stoss ELASTOMER oben+unten\",\"Holzwerkstoffplatte\")","v":"Holzwerkstoffplatte"}]
[null,null,null,null,null,null,null,null,null,null,null,null,null,null,null,null,null,null,null,null,null,{"$f":"IF(D40=\"Massivholzwand\",\"X-Stoss\",\"\")","v":""}]
[null,null,null,null,null,null,null,null,null,null,null,null,null,null,null,null,null,null,null,null,null,{"$f":"IF(D40=\"Massivholzwand\",\"X-Stoss ELASTOMER oben\",\"\")","v":""}]
[]
[null,null,"Zusätzliche Angaben zur Trenndecke für das Prognosemodell",null,null,null,null,null,null,null,null,null,null,null,null,null,null,null,null,null,null,{"$f":"IF(D40=\"Massivholzwand\",\"X-Stoss ELASTOMER oben+unten\",\"\")","v":""}]
[null,null,"Trennfläche der Decke SS =",11.618399999999999]
[null,null,"Ausgewählter Deckentyp: ","Holzbalkendecke mit FS + 1 x GK",null,null,null,null,null,null,null,null,null,null,null,null,null,null,null,null,null,{"$f":"IF(D49=\"Massivholzwand\",\"T-Stoss\",\"Holzwerkstoffplatte + GKP\")","v":"Holzwerkstoffplatte + GKP"}]
[null,null,"Art des Estrichaufbaus: ","Zementestrich auf Mineralfaser",null,null,null,null,null,null,null,null,null,null,null,null,null,null,null,null,null,{"$f":"IF(D49=\"Massivholzwand\",\"T-Stoss ELASTOMER oben\",\"Gipsfaser\")","v":"Gipsfaser"}]
[null,null,null,null,null,null,null,null,null,null,null,null,null,null,null,null,null,null,null,null,null,{"$f":"IF(D49=\"Massivholzwand\",\"T-Stoss ELASTOMER oben+unten\",\"Holzwerkstoffplatte\")","v":"Holzwerkstoffplatte"}]
[]
[null,null,"Flankierende Wände:"]
[null,null,null,null,null,null,null,null,null,null,null,null,null,null,null,null,null,null,null,null,null,{"$f":"IF(D49=\"Massivholzwand\",\"X-Stoss\",\"\")","v":""}]
[null,null,"Wand 1",null,null,null,null,null,null,null,null,null,null,null,null,null,null,null,null,null,null,{"$f":"IF(D49=\"Massivholzwand\",\"X-Stoss ELASTOMER oben\",\"\")","v":""}]
[null,null,"Gemeinsame Kantenlänge lf =",3.09,null,null,"Trittschallpegel Flanke:",null,"Flankendämm-Maße:",null,null,null,null,null,null,null,null,null,null,null,null,{"$f":"IF(D49=\"Massivholzwand\",\"X-Stoss ELASTOMER oben+unten\",\"\")","v":""}]
[null,null,"Wandtyp:","Holzständerwand"," "," ","LnDFf,w =",19.24812155072339,"RFf,w =",84.284003587030043]
[null,null,{"$f":"IF(D31=\"Holzständerwand\", \"raumseitige Beplankung:\",\"Stoßstelle Decke/Wand:\")","v":"raumseitige Beplankung:"},"Holzwerkstoffplatte + GKP"," "," ","LnDf,w =",30.227497151440382," "," ",null,null,null,null,null,null,null,null,null,null,null,{"$f":"IF(D58=\"Massivholzwand\",\"T-Stoss\",\"Holzwerkstoffplatte + GKP\")","v":"Holzwerkstoffplatte + GKP"}]
[null,null,{"$f":"IF(AND(D31=\"Massivholzwand\",Berechnungsweise=\"Prognoseergebnis:\"),\"Wand+Beplankung: m' =\",\"\")","v":""},null," "," ",null,null," "," ",null,null,null,null,null,null,null,null,null,null,null,{"$f":"IF(D58=\"Massivholzwand\",\"T-Stoss ELASTOMER oben\",\"Gipsfaser\")","v":"Gipsfaser"}]
[null,null,null,null,null,null,"Verbesserung durch Vorsatzschalen:"]
[null,null,null,null,null,null,"VS-Schale-Senderaum",null,"DRw =",10,null,null,null,null,null,null,null,null,null,null,null,{"$f":"IF(D58=\"Massivholzwand\",\"T-Stoss ELASTOMER oben+unten\",\"Holzwerkstoffplatte\")","v":"Holzwerkstoffplatte"}]
[null,null,null,null,null,null,"VS-Schale-Empfangsraum",null,"DRw =",10,null,null,null,null,null,null,null,null,null,null,null,{"$f":"IF(D58=\"Massivholzwand\",\"X-Stoss\",\"\")","v":""}]
[]
[null,null,"Wand 2",null,null,null,null,null,null,null,null,null,null,null,null,null,null,null,null,null,null,{"$f":"IF(D58=\"Massivholzwand\",\"X-Stoss ELASTOMER oben\",\"\")","v":""}]
[null,null,"Gemeinsame Kantenlänge lf =",3.76,null,null,"Trittschallpegel Flanke:",null,"Flankendämm-Maße:",null,null,null,null,null,null,null,null,null,null,null,null,{"$f":"IF(D58=\"Massivholzwand\",\"X-Stoss ELASTOMER oben+unten\",\"\")","v":""}]
[null,null,"Wandtyp:","Holzständerwand"," "," ","LnDFf,w =",35.100415205751652,"RFf,w =",68.43170993200178]
[null,null,{"$f":"IF(Wandtyp4=\"Holzständerwand\", \"raumseitige Beplankung:\",\"Stoßstelle Decke/Wand:\")","v":"raumseitige Beplankung:"},"Holzwerkstoffplatte + GKP"," "," ","LnDf,w =",41.079790806468644," "," "]
[null,null,{"$f":"IF(AND(D40=\"Massivholzwand\",Berechnungsweise=\"Prognoseergebnis:\"),\"Wand+Beplankung: m' =\",\"\")","v":""},null," "," ",null,null," "," "]
[null,null,null,null,null,null,"Verbesserung durch Vorsatzschalen:"]
[null,null,null,null,null,null,"VS-Schale-Senderaum",null,"DRw =",5]
[null,null,null,null,null,null,"VS-Schale-Empfangsraum",null,"DRw =",5]
[]
[null,null,"Wand 3"]
[null,null,"Gemeinsame Kantenlänge lf =",3.09,null,null,"Trittschallpegel Flanke:",null,"Flankendämm-Maße:"]
[null,null,"Wandtyp:","Holzständerwand"," "," ","LnDFf,w =",29.74812155072339,"RFf,w =",73.784003587030043]
[null,null,{"$f":"IF(Wandtyp4=\"Holzständerwand\", \"raumseitige Beplankung:\",\"Stoßstelle Decke/Wand:\")","v":"raumseitige Beplankung:"},"Holzwerkstoffplatte + GKP"," "," ","LnDf,w =",37.227497151440382," "," "]
[null,null,{"$f":"IF(AND(D49=\"Massivholzwand\",Berechnungsweise=\"Prognoseergebnis:\"),\"Wand+Beplankung: m' =\",\"\")","v":""},null," "," ",null,null," "," "]
[null,null,null,null,null,null,"Verbesserung durch Vorsatzschalen:"]
[null,null,null,null,null,null,"VS-Schale-Senderaum",null,"DRw =",3]
[null,null,null,null,null,null,"VS-Schale-Empfangsraum",null,"DRw =",3]
[]
[null,null,"Wand 4"]
[null,null,"Gemeinsame Kantenlänge lf =",3.76,null,null,"Trittschallpegel Flanke:",null,"Flankendämm-Maße:"]
[null,null,"Wandtyp:","Holzständerwand"," "," ","LnDFf,w =",30.600415205751652,"RFf,w =",72.93170993200178]
[null,null,{"$f":"IF(Wandtyp4=\"Holzständerwand\", \"raumseitige Beplankung:\",\"Stoßstelle Decke/Wand:\")","v":"raumseitige Beplankung:"},"Holzwerkstoffplatte + GKP"," "," ","LnDf,w =",38.079790806468644," "," "]
[null,null,{"$f":"IF(AND(D58=\"Massivholzwand\",Berechnungsweise=\"Prognoseergebnis:\"),\"Wand+Beplankung: m' =\",\"\")","v":""},null," "," ",null,null," "," "]
[null,null,null,null,null,null,"Verbesserung durch Vorsatzschalen:"]
[null,null,null,null,null,null,"VS-Schale-Senderaum",null,"DRw =",3]
[null,null,null,null,null,null,"VS-Schale-Empfangsraum",null,"DRw =",3]
[]
[]
[]
[]
[]
[]
[]
[]
[]
[]
[]
[]
[]
[]
[null,null,"Prognoseergebnis:"]
[]
[null,null,null,"Bewertetes Bau-Schalldämm-Maß",null,null,"     R'w   =",null,65.765998284261741]
[null,null,null,"Bewerteter Norm-Trittschallpegel inkl. Nebenwege",null,null,"     L'n,w   =",null,48.500788029370696]

{"sheet":"Bauteilschichten","index":3,"n_rows":169,"n_cols":11,"rows_kept":169,"cut":false,"hidden":false,"merged":[[126,1,126,4],[126,6,126,8],[126,10,126,14],[1,1,1,4],[1,6,1,8],[1,10,1,14],[22,1,22,4],[22,6,22,8],[22,10,22,14],[57,1,57,4],[57,6,57,8],[57,10,57,14],[88,1,88,4],[88,6,88,8],[88,10,88,14]]}
[]
[null,"Estrichaufbauten",null,null,null,null,"Bild: imgB",null,null,null,"Konstruktion: imgK"]
[]
[null,"≥ 50 mm","Estrich, m‘ ≥ 120 kg/m²"]
[]
[null,"≥ 80 mm","Estrich, m‘ ≥ 190 kg/m²"]
[]
[null,"≥ 18 mm","Trockenestrich aus Gips- oder Holzwerkstoffplatten"]
[]
[null,"≥ 20 mm","Trockenestrich aus Gips- oder Holzwerkstoffplatten"]
[]
[null,"≥ 22 mm","Trockenestrich aus Gips- oder Holzwerkstoffplatten"]
[]
[null,"≥ 24 mm","Trockenestrich aus Gips- oder Holzwerkstoffplatten"]
[]
[null,"≥ 25 mm","Trockenestrich aus Gips- oder Holzwerkstoffplatten"]
[]
[null,"≥ 30 mm","Gussasphalt, m‘ ≥ 85 kg/m²"]
[]
[null,"≥ 24 mm","Dielenboden aus Holzdielen"]
[]
[]
[null,"Trittschalldämmplatten",null,null,null,null,"Bild: imgB",null,null,null,"Konstruktion: imgK"]
[]
[null,"≥ 40 mm","MW DES-sh, s‘ ≤  6 MN/m³"]
[]
[null,"≥ 40 mm","MW DES-sh, s‘ ≤  7 MN/m³"]
[]
[null,"≥ 20 mm","MW DES-sh, s‘ ≤  8 MN/m³"]
[]
[null,"≥ 30 mm","MW DES-sh, s‘ ≤  8 MN/m³"]
[]
[null,"≥ 20 mm","MW DES-sh, s‘ ≤  20 MN/m³"]
[]
[null,"≥ 20 mm","MW DES-sh, s‘ ≤  10 MN/m³"]
[]
[null,"≥ 25 mm","MW DES-sm, s‘ ≤  15 MN/m³"]
[]
[null,"≥ 30 mm","MW DES-sm, s‘ ≤  20 MN/m³"]
[]
[null,"≥ 20 mm","MW DES-sm, s‘ ≤  30 MN/m³"]
[]
[null,"≥ 20 mm","WF DES-sg, s‘ ≤  30 MN/m³"]
[]
[null,"≥ 30 mm","WF DES-sg, s‘ ≤  20 MN/m³"]
[]
[null,"≥ 30 mm","WF DES-sg, s‘ ≤  30 MN/m³"]
[]
[null,"≥ 40 mm","MW DES-sm, s‘ ≤  20 MN/m³"]
[]
[null,"≥ 40 mm","EPS DES-sm, s‘ ≤  10 MN/m³"]
[]
[null,"10 mm","WF als lastverteilende Schicht"]
[]
[null,"≥ 40 mm","WF DES-sg mit Verlegeleisten"]
[]
[]
[null,"Beschwerung",null,null,null,null,"Bild: imgB",null,null,null,"Konstruktion: imgK"]
[]
[null,"≥ 40 mm","Zementgebundene Spanplatten, m‘ ≥ 50 kg/m²"]
[]
[null,"≥ 40 mm","Betonsteine, m‘ ≥ 100 kg/m²"]
[]
[null,"≥ 60 mm","Betonsteine, m‘ ≥ 150 kg/m²"]
[]
[null,"≥ 18 mm","Schüttung, m‘ ≥ 25 kg/m²"]
[]
[null,"≥ 30 mm","Schüttung, m‘ ≥ 45 kg/m²"]
[]
[null,"≥ 30 mm","Ausgleichsschüttung, m‘ ≥ 12 kg/m²"]
[]
[null,"≥ 40 mm","Schüttung, m‘ ≥ 60 kg/m²"]
[]
[null,"≥ 50 mm","Schüttung, m‘ ≥ 75 kg/m²"]
[]
[null,"≥ 60 mm","Schüttung, m‘ ≥ 90 kg/m²"]
[]
[null,"≥ 70 mm","Schüttung, m‘ ≥ 105 kg/m²"]
[]
[null,"≥ 80 mm","Schüttung, m‘ ≥ 120 kg/m²"]
[]
[null,"≥ 100 mm","Schüttung, m‘ ≥ 150 kg/m²"]
[]
[null,"≥ 80 mm","Beton (HBV), m‘ ≥ 200 kg/m²"]
[]
[null,"≥ 200 mm","Beton (HBV), m‘ ≥ 240 kg/m²"]
[]
[]
[null,"Rohdecke",null,null,null,null,"Bild: imgB",null,null,null,"Konstruktion: imgK"]
[]
[null,"  ≥ 22 mm ","Holzwerkstoffplatte\u2028    "]
[null,"  ≥ 220 mm ","Balken"]
[]
[]
[null,"  ≥ 22 mm ","Holzwerkstoffplatte\u2028    "]
[null,"  ≥ 220 mm ","Balken mit ≥ 100 mm Faserdämmstoff"]
[]
[]
[null,"  ≥ 22 mm ","Holzwerkstoffplatte\u2028    "]
[null,"  ≥ 220 mm ","Balken mit ≥ 200 mm Faserdämmstoff"]
[]
[]
[null,"  ≥ 120 mm ","Brettsperrholz-, Brettschichtholz-"]
[null,null,"oder Brettstapelelement"]
[]
[]
[null,"  ≥ 240 mm ","Massivholz - Kastenelement"]
[]
[]
[]
[null,"  ≥ 240 mm ","Massivholz - Kastenelement"]
[null,null,"Lignatur LFE, silence 12 mit Tilgern"]
[]
[]
[null,"  ≥ 240 mm ","Massivholz - Kastenelement"]
[null,null,"Lignatur LFE, silence 12, Akustik mit Tilgern"]
[]
[]
[null,"  ≥ 215 mm ","Brettsperrholz - Rippenelement"]
[null,null,"Lignotrend Rippe Q3 + Schüttung m' = 147 kg/m²"]
[]
[]
[null,"  ≥ 262 mm ","Brettsperrholz - Rippenelement"]
[null,null,"Lignotrend Decke Q3 + Schüttung m' = 196 kg/m²"]
[]
[]
[null,"Unterdecke",null,null,null,null,"Bild: imgB",null,null,null,"Konstruktion: imgK"]
[]
[null,"     24 mm ","Holzlatten, Achsabstand e  ≥  400 mm"]
[]
[null,"     27 mm ","Federschienen, Achsabstand e  ≥  417 mm"]
[]
[null,"     ≥ 65 mm ","Abhänger mit CD Profil, Achsabstand e  ≥  400 mm"]
[null,null,"Eigenfrequenz Abhänger f0 ≤ 30 Hz"]
[]
[null,"     ≥ 40 mm ","Abhänger mit CD Profil, Achsabstand e  ≥  400 mm"]
[null,null,"Eigenfrequenz Abhänger f0 ≤ 30 Hz"]
[]
[null,"     ≥ 70 mm ","Abhänger mit CD Profil, Achsabstand e  ≥  400 mm"]
[null,null,"Eigenfrequenz Abhänger f0 ≤ 20 Hz"]
[]
[null,"     ≥ 57 mm ","Abhänger mit CD Profil, Achsabstand e  ≥  400 mm"]
[null,null,"Eigenfrequenz Abhänger f0 ≤ 20 Hz"]
[]
[null,"     ≥ 57 mm ","Abhänger mit Holzlattung, Achsabstand e  ≥  400 mm"]
[null,null,"Eigenfrequenz Abhänger f0 ≤ 30 Hz"]
[]
[null,"     ≥ 57 mm ","Abhänger mit Holzlattung, Achsabstand e  ≥  400 mm"]
[null,null,"Eigenfrequenz Abhänger f0 ≤ 20 Hz"]
[]
[null,"     ≥ 140 mm ","Abhänger mit 2 x CD Profil, kreuzweise montiert"]
[null,null,"Achsabstand e  ≥  900 mm x 400 mm"]
[null,null,"Eigenfrequenz Abhänger f0 ≤ 20 Hz"]
[]
[null,"     ≥ 35 mm ","Clip mit CD Profil, Achsabstand e  ≥  400 mm"]
[]
[null,"     ≥ 90 mm ","Abhänger mit CD Profil und 75 mm Faserdämmstoff"]
[null,null,"Eigenfrequenz Abhänger f0 ≤ 30 Hz, e  ≥  400 mm"]
[]
[null,"     ≥ 180 mm ","Abhänger mit CD Profil und 120 mm Faserdämmstoff"]
[null,null,"Eigenfrequenz Abhänger f0 ≤ 30 Hz, e  ≥  400 mm"]
[]
[null,"12,5 mm","GK, m‘ ≥ 8,5 kg/m²"]
[]
[null,"12,5 mm","GKF, m‘ ≥ 10 kg/m²"]
[]
[null,"18 mm","GKF, m‘ ≥ 14,5 kg/m²"]
[]
[null,"15 mm","GF, m‘ ≥ 17 kg/m²"]